[Event "RUS-ch Men Blitz 2019"]
[Site "Sochi"]
[Date "2019.10.20"]
[Round "2.12"]
[White "Tsydypov, Zhamsaran"]
[Black "Chizhikov, Vladislav"]
[Result "1-0"]
[ECO "C40"]
[WhiteElo "2553"]
[BlackElo "2273"]
[Annotator "ChessBase"]
[PlyCount "118"]
[EventDate "2019.10.17"]
[EventType "swiss"]
[EventCountry "RUS"]
[SourceTitle "playchess.com"]
[Source "ChessBase"]
[SourceQuality "1"]
[TimeControl "180+2"]

1. e4 {[%emt 0:00:00]} e5 {[%emt 0:00:00]} 2. Nf3 {[%emt 0:00:02]} d5 {[%emt 0:00:00]} 3. exd5 {[%emt 0:00:03]} e4 {[%emt 0:00:01]} 4. Qe2 {[%emt 0:00:01]} Nf6 {[%emt 0:00:04]} 5. d3 {[%emt 0:00:02]} Qxd5 {[%emt 0:00:02]} 6. Nfd2 {[%emt 0:00:02]} Nc6 {[%emt 0:00:05]} 7. Nxe4 {[%emt 0:00:09]} Be6 {[%emt 0:00:03]} 8. Nbc3 {[%emt 0:00:02]} Qd7 {[%emt 0:00:14]} 9. Be3 {[%emt 0:00:03]} O-O-O {[%emt 0:00:05]} 10. O-O-O {[%emt 0:00:13]} Nd4 {[%emt 0:00:14]} 11. Qe1 {[%emt 0:00:28]} Bb4 {[%emt 0:00:04]} 12. a3 {[%emt 0:00:05]} Ba5 {[%emt 0:00:16]} 13. Nc5 {[%emt 0:00:16]} Qc6 {[%emt 0:00:07]} 14. Nxe6 {[%emt 0:00:02]} Nxe6 {[%emt 0:00:20]} 15. Be2 {[%emt 0:00:29]} Nd4 {[%emt 0:00:09]} 16. Bxd4 {[%emt 0:00:02]} Rxd4 {[%emt 0:00:02]} 17. Bf3 {[%emt 0:00:01]} Qc5 {[%emt 0:00:24]} 18. b4 {[%emt 0:00:21]} Rxb4 {[%emt 0:00:17]} 19. axb4 {[%emt 0:00:02]} Bxb4 {[%emt 0:00:01]} 20. Kb2 {[%emt 0:00:52]} Ba3+ {[%emt 0:00:01]} 21. Ka2 {[%emt 0:00:04]} Qa5 {[%emt 0:00:01]} 22. Ra1 {[%emt 0:00:13]} Re8 {[%emt 0:00:27]} 23. Qd2 {[%emt 0:00:01]} Re6 {[%emt 0:00:05]} 24. Ne4 {[%emt 0:00:06]} Bb4+ {[%emt 0:00:18]} 25. Kb1 {[%emt 0:00:01]} Bxd2 {[%emt 0:00:03]} 26. Rxa5 {[%emt 0:00:01]} Bxa5 {[%emt 0:00:01]} 27. Nc5 {[%emt 0:00:01]} Rb6+ {[%emt 0:00:04]} 28. Nb3 {[%emt 0:00:03]} Bc3 {[%emt 0:00:02]} 29. Kc1 {[%emt 0:00:01]} a5 {[%emt 0:00:01]} 30. Nc5 {[%emt 0:00:02]} Bd4 {[%emt 0:00:06]} 31. Nb3 {[%emt 0:00:02]} Bxf2 {[%emt 0:00:03]} 32. Kd2 {[%emt 0:00:07]} a4 {[%emt 0:00:01]} 33. Na5 {[%emt 0:00:00]} Bc5 {[%emt 0:00:10]} 34. Nc4 {[%emt 0:00:02]} Re6 {[%emt 0:00:02]} 35. Rb1 {[%emt 0:00:04]} c6 {[%emt 0:00:02]} 36. c3 {[%emt 0:00:01]} b5 {[%emt 0:00:02]} 37. Na5 {[%emt 0:00:01]} Kc7 {[%emt 0:00:05]} 38. Nxc6 {[%emt 0:00:02]} Rxc6 {[%emt 0:00:02]} 39. Rxb5 {[%emt 0:00:01]} Be3+ {[%emt 0:00:05]} 40. Kxe3 {[%emt 0:00:01]} Rxc3 {[%emt 0:00:01]} 41. Rb7+ {[%emt 0:00:02]} Kd6 {[%emt 0:00:01]} 42. Rxf7 {[%emt 0:00:01]} a3 {[%emt 0:00:08]} 43. Ra7 {[%emt 0:00:01]} g5 {[%emt 0:00:02]} 44. Kd4 {[%emt 0:00:02]} Rb3 {[%emt 0:00:01]} 45. Ra6+ {[%emt 0:00:01]} Ke7 {[%emt 0:00:01]} 46. Kc4 {[%emt 0:00:01]} Rb2 {[%emt 0:00:06]} 47. Rxa3 {[%emt 0:00:02]} g4 {[%emt 0:00:01]} 48. Ba8 {[%emt 0:00:00]} Rc2+ {[%emt 0:00:02]} 49. Kd4 {[%emt 0:00:01]} Re2 {[%emt 0:00:02]} 50. Ra7+ {[%emt 0:00:03]} Ke6 {[%emt 0:00:00]} 51. Ra5 {[%emt 0:00:01]} h5 {[%emt 0:00:03]} 52. h3 {[%emt 0:00:02]} gxh3 {[%emt 0:00:01]} 53. gxh3 {[%emt 0:00:01]} Rh2 {[%emt 0:00:01]} 54. Bb7 {[%emt 0:00:00]} Ke7 {[%emt 0:00:02]} 55. Bc8 {[%emt 0:00:02]} Re2 {[%emt 0:00:02]} 56. Ra6 {[%emt 0:00:05]} h4 {[%emt 0:00:01]} 57. Ra5 {[%emt 0:00:01]} Kd8 {[%emt 0:00:05]} 58. Bf5 {[%emt 0:00:02]} Rf2 {[%emt 0:00:01]} 59. Ke5 {[%emt 0:00:02]} Nd7+ {[%emt 0:00:08]} 1-0

[Event "RUS-ch Men Blitz 2019"]
[Site "Sochi"]
[Date "2019.10.17"]
[Round "2.12"]
[White "Nozdrachev, Vladislav"]
[Black "Yatzenko, Anton"]
[Result "1-0"]
[ECO "C47"]
[WhiteElo "2494"]
[BlackElo "2383"]
[Annotator "ChessBase"]
[PlyCount "41"]
[EventDate "2019.10.17"]
[EventType "swiss"]
[EventCountry "RUS"]
[SourceTitle "playchess.com"]
[Source "ChessBase"]
[SourceQuality "1"]
[TimeControl "180+2"]

1. e4 {[%emt 0:00:00]} e5 {[%emt 0:00:00]} 2. Nf3 {[%emt 0:00:01]} Nc6 {[%emt 0:00:00]} 3. Nc3 {[%emt 0:00:01]} Nf6 {[%emt 0:00:00]} 4. Be2 {[%emt 0:00:01]} Bc5 {[%emt 0:00:17]} 5. Nxe5 {[%emt 0:00:05]} Nxe5 {[%emt 0:00:02]} 6. d4 {[%emt 0:00:01]} Bxd4 {[%emt 0:00:01]} 7. Qxd4 {[%emt 0:00:02]} d6 {[%emt 0:00:01]} 8. O-O {[%emt 0:00:04]} O-O {[%emt 0:00:01]} 9. Bg5 {[%emt 0:00:03]} h6 {[%emt 0:00:02]} 10. Bh4 {[%emt 0:00:02]} Ng6 {[%emt 0:00:01]} 11. Bxf6 {[%emt 0:00:01]} gxf6 {[%emt 0:00:30]} 12. Nd5 {[%emt 0:00:03]} Kg7 {[%emt 0:00:01]} 13. Rad1 {[%emt 0:00:17]} Be6 {[%emt 0:00:01]} 14. Ne3 {[%emt 0:00:03]} Re8 {[%emt 0:00:56]} 15. f4 {[%emt 0:00:02]} Bd7 {[%emt 0:00:01]} 16. Bc4 {[%emt 0:00:07]} b5 {[%emt 0:00:51]} 17. Bd5 {[%emt 0:00:19]} c6 {[%emt 0:00:02]} 18. Bb3 {[%emt 0:00:10]} Qe7 {[%emt 0:00:34]} 19. Qxd6 {[%emt 0:00:41]} Qxe4 {[%emt 0:00:01]} 20. Qxd7 {[%emt 0:00:05]} Re7 {[%emt 0:00:01]} 21. Nf5+ {[%emt 0:00:02]} 1-0

[Event "RUS-ch Men Blitz 2019"]
[Site "Sochi"]
[Date "2019.10.17"]
[Round "2.14"]
[White "Savchenko, Boris"]
[Black "Shcherbin, Matvei"]
[Result "0-1"]
[ECO "B20"]
[WhiteElo "2581"]
[BlackElo "2366"]
[Annotator "RC"]
[PlyCount "140"]
[EventDate "2019.10.17"]
[EventType "swiss"]
[EventCountry "RUS"]
[SourceTitle "playchess.com"]
[Source "ChessBase"]
[SourceQuality "1"]
[TimeControl "180+2"]

1. e4 {[%emt 0:00:00]} c5 {[%emt 0:00:00]} 2. Be2 {[%emt 0:00:00]} Nc6 {[%emt 0:00:00]} 3. f4 {[%emt 0:00:02]} d5 {[%emt 0:00:10]} 4. d3 {[%emt 0:00:01]} Nf6 {[%emt 0:00:06]} 5. e5 {[%emt 0:00:04]} Nd7 {[%emt 0:00:02]} 6. c4 {[%emt 0:00:08]} e6 {[%emt 0:00:06]} 7. Nc3 {[%emt 0:00:02]} dxc4 {[%emt 0:00:14]} 8. dxc4 {[%emt 0:00:01]} Be7 {[%emt 0:00:04]} 9. Nf3 {[%emt 0:00:03]} O-O {[%emt 0:00:01]} 10. Be3 {[%emt 0:00:41]} f6 {[%emt 0:00:18]} 11. exf6 {[%emt 0:00:20]} Bxf6 {[%emt 0:00:01]} 12. Qd6 {[%emt 0:00:11]} Qb6 {[%emt 0:00:24]} 13. O-O-O {[%emt 0:00:06]} Nd4 {[%emt 0:00:34]} 14. Qxb6 {[%emt 0:00:06]} Nxe2+ {[%emt 0:00:01]} 15. Nxe2 axb6 16. a3 {[%emt 0:00:06]} Nb8 {[%emt 0:00:21]} 17. Nd2 {[%emt 0:00:04]} Bd7 {[%emt 0:00:05]} 18. Kc2 {[%emt 0:00:06]} Bc6 {[%emt 0:00:01]} 19. Rhg1 {[%emt 0:00:02]} Nd7 {[%emt 0:00:06]} 20. Nc3 {[%emt 0:00:02]} Bxc3 {[%emt 0:00:06]} 21. Kxc3 {[%emt 0:00:01]} Nf6 {[%emt 0:00:01]} 22. Kc2 {[%emt 0:00:03]} Ng4 {[%emt 0:00:06]} 23. Rde1 {[%emt 0:00:09]} Nxe3+ {[%emt 0:00:06]} 24. Rxe3 {[%emt 0:00:01]} Rxf4 {[%emt 0:00:00]} 25. Re2 {[%emt 0:00:04]} Raf8 {[%emt 0:00:03]} 26. g3 {[%emt 0:00:04]} Rf2 {[%emt 0:00:01]} 27. Rge1 {[%emt 0:00:01]} e5 {[%emt 0:00:04]} 28. h4 {[%emt 0:00:11]} Rxe2 {[%emt 0:00:19]} 29. Rxe2 {[%emt 0:00:01]} Re8 {[%emt 0:00:00]} 30. Rf2 {[%emt 0:00:08]} Rf8 {[%emt 0:00:04]} 31. Re2 {[%emt 0:00:01]} Re8 {[%emt 0:00:00]} 32. Kc3 {[%emt 0:00:05]} b5 {[%emt 0:00:10]} 33. cxb5 {[%emt 0:00:04]} Bxb5 {[%emt 0:00:01]} 34. Re3 {[%emt 0:00:03]} b6 {[%emt 0:00:08]} 35. Nc4 {[%emt 0:00:03]} Bxc4 {[%emt 0:00:04]} 36. Kxc4 {[%emt 0:00:01]} Kf7 {[%emt 0:00:01]} 37. Kd5 {[%emt 0:00:02]} Kf6 {[%emt 0:00:08]} 38. Rf3+ {[%emt 0:00:01]} Kg6 {[%emt 0:00:01]} 39. Rb3 {[%emt 0:00:01]} Kf5 {[%emt 0:00:09]} 40. Rf3+ {[%emt 0:00:11]} Kg4 {[%emt 0:00:03]} 41. Ke4 {[%emt 0:00:03]} Re7 {[%emt 0:00:02]} 42. a4 {[%emt 0:00:03]} g6 {[%emt 0:00:02]} 43. Rf6 {[%emt 0:00:03]} Ra7 {[%emt 0:00:07]} 44. b3 {[%emt 0:00:01]} Ra6 {[%emt 0:00:01]} 45. Kxe5 {[%emt 0:00:32]} Kxg3 {[%emt 0:00:00]} 46. Rf7 {[%emt 0:00:01]} c4 {[%emt 0:00:05]} 47. bxc4 {[%emt 0:00:02]} Rxa4 {[%emt 0:00:00]} 48. Kd5 {[%emt 0:00:04]} Ra5+ {[%emt 0:00:02]} 49. Kd4 {[%emt 0:00:00]} Rh5 {[%emt 0:00:01]} 50. Rb7 {[%emt 0:00:02]} Rxh4+ {[%emt 0:00:03]} 51. Kd3 {[%emt 0:00:00]} Rh1 {[%emt 0:00:03]} 52. Rxb6 {[%emt 0:00:02]} Rc1 {[%emt 0:00:01]} 53. Kd4 {[%emt 0:00:03]} Kf4 {[%emt 0:00:02]} 54. Rf6+ {[%emt 0:00:02]} Kg5 {[%emt 0:00:01]} 55. Rf2 {[%emt 0:00:02]} h5 {[%emt 0:00:01]} 56. Rg2+ {[%emt 0:00:04]} Kf5 57. Rf2+ {[%emt 0:00:00]} Kg5 {[%emt 0:00:01]} 58. Rg2+ {[%emt 0:00:01]} Kh6 {[%emt 0:00:01]} 59. c5 {[%emt 0:00:11]} h4 {[%emt 0:00:01]} 60. Re2 {[%emt 0:00:14]} Kh5 {[%emt 0:00:01]} 61. Re8 {[%emt 0:00:03]} g5 {[%emt 0:00:03]} 62. Kd5 {[%emt 0:00:02]} h3 {[%emt 0:00:01]} 63. Rh8+ {[%emt 0:00:04]} Kg4 {[%emt 0:00:01]} 64. c6 {[%emt 0:00:01]} Kg3 {[%emt 0:00:02]} 65. Kd6 {[%emt 0:00:01]} h2 {[%emt 0:00:01]} 66. c7 {[%emt 0:00:01]} g4 {[%emt 0:00:01]} 67. Rh5 {[%emt 0:00:03]} Kg2 {[%emt 0:00:07]} 68. Rc5 {[%emt 0:00:03]} Rxc5 {[%emt 0:00:01]} 69. Kxc5 {[%emt 0:00:01]} h1=Q {[%emt 0:00:01]} 70. c8=Q {[%emt 0:00:02]} Qc1+ {[%emt 0:00:01]} 0-1

[Event "RUS-ch Men Blitz 2019"]
[Site "Sochi"]
[Date "2019.10.17"]
[Round "2.15"]
[White "Remizov, Yaroslav"]
[Black "Bocharov, Dmitry"]
[Result "1/2-1/2"]
[ECO "B06"]
[WhiteElo "2394"]
[BlackElo "2519"]
[Annotator "ChessBase"]
[PlyCount "86"]
[EventDate "2019.10.17"]
[EventType "swiss"]
[EventCountry "RUS"]
[SourceTitle "playchess.com"]
[Source "ChessBase"]
[SourceQuality "1"]
[TimeControl "180+2"]

1. e4 {[%emt 0:00:00]} g6 {[%emt 0:00:00]} 2. d4 {[%emt 0:00:05]} Bg7 {[%emt 0:00:00]} 3. Nf3 {[%emt 0:00:03]} d6 {[%emt 0:00:02]} 4. Nc3 {[%emt 0:00:23]} a6 {[%emt 0:00:02]} 5. Bd3 {[%emt 0:00:03]} Bg4 {[%emt 0:00:10]} 6. Be3 {[%emt 0:00:06]} Nc6 {[%emt 0:00:02]} 7. d5 {[%emt 0:00:17]} Bxf3 {[%emt 0:00:10]} 8. gxf3 {[%emt 0:00:06]} Ne5 {[%emt 0:00:10]} 9. Be2 {[%emt 0:00:14]} c6 {[%emt 0:00:03]} 10. f4 {[%emt 0:00:06]} Nd7 {[%emt 0:00:02]} 11. Bd4 {[%emt 0:00:31]} Bf6 {[%emt 0:00:52]} 12. dxc6 {[%emt 0:00:54]} bxc6 {[%emt 0:00:02]} 13. Qd2 {[%emt 0:00:01]} c5 {[%emt 0:00:15]} 14. Be3 {[%emt 0:00:17]} Qa5 {[%emt 0:00:13]} 15. Nd5 {[%emt 0:00:05]} Qxd2+ {[%emt 0:00:06]} 16. Kxd2 {[%emt 0:00:10]} Rb8 {[%emt 0:00:05]} 17. Nc7+ {[%emt 0:00:07]} Kf8 {[%emt 0:00:05]} 18. Nxa6 {[%emt 0:00:01]} Rb7 {[%emt 0:00:44]} 19. a4 {[%emt 0:00:04]} e5 {[%emt 0:00:05]} 20. f5 {[%emt 0:00:04]} gxf5 {[%emt 0:00:03]} 21. exf5 {[%emt 0:00:00]} Ne7 {[%emt 0:00:02]} 22. b4 {[%emt 0:00:04]} cxb4 {[%emt 0:00:24]} 23. Rab1 {[%emt 0:00:00]} Nxf5 {[%emt 0:00:04]} 24. Rxb4 {[%emt 0:00:01]} Rxb4 {[%emt 0:00:01]} 25. Nxb4 {[%emt 0:00:00]} Nxe3 {[%emt 0:00:02]} 26. fxe3 {[%emt 0:00:01]} Nc5 {[%emt 0:00:01]} 27. a5 {[%emt 0:00:05]} e4 {[%emt 0:00:02]} 28. a6 {[%emt 0:00:02]} Kg7 {[%emt 0:00:02]} 29. Rg1+ {[%emt 0:00:01]} Kh6 {[%emt 0:00:01]} 30. Rf1 {[%emt 0:00:00]} Kg7 {[%emt 0:00:02]} 31. Rg1+ {[%emt 0:00:01]} Kh6 {[%emt 0:00:00]} 32. Bc4 {[%emt 0:00:03]} Rb8 {[%emt 0:00:02]} 33. Nd5 {[%emt 0:00:03]} Be5 {[%emt 0:00:02]} 34. Ne7 {[%emt 0:00:01]} Rf8 {[%emt 0:00:05]} 35. Nf5+ {[%emt 0:00:02]} Kh5 {[%emt 0:00:01]} 36. a7 {[%emt 0:00:01]} Ne6 {[%emt 0:00:02]} 37. Bd5 {[%emt 0:00:03]} Bxh2 {[%emt 0:00:02]} 38. Rh1 {[%emt 0:00:02]} Kg5 {[%emt 0:00:01]} 39. Rxh2 {[%emt 0:00:01]} Kxf5 {[%emt 0:00:01]} 40. a8=Q {[%emt 0:00:02]} Rxa8 {[%emt 0:00:01]} 41. Bxa8 Ng5 {[%emt 0:00:01]} 42. Rh5 {[%emt 0:00:08]} Kg4 {[%emt 0:00:04]} 43. Rxg5+ {[%emt 0:00:01]} Kxg5 {[%emt 0:00:01]} 1/2-1/2

[Event "RUS-ch Men Blitz 2019"]
[Site "Sochi"]
[Date "2019.10.17"]
[Round "2.17"]
[White "Stambulian, Arsen"]
[Black "Rozum, Ivan"]
[Result "0-1"]
[ECO "C41"]
[WhiteElo "2306"]
[BlackElo "2599"]
[Annotator "ChessBase"]
[PlyCount "62"]
[EventDate "2019.10.17"]
[EventType "swiss"]
[EventCountry "RUS"]
[SourceTitle "playchess.com"]
[Source "ChessBase"]
[SourceQuality "1"]
[TimeControl "180+2"]

1. e4 {[%emt 0:00:00]} d6 {[%emt 0:00:05]} 2. d4 {[%emt 0:00:01]} Nf6 {[%emt 0:00:01]} 3. Nc3 {[%emt 0:00:01]} e5 {[%emt 0:00:01]} 4. Nf3 {[%emt 0:00:03]} Nbd7 {[%emt 0:00:02]} 5. Bc4 {[%emt 0:00:02]} Be7 {[%emt 0:00:01]} 6. O-O {[%emt 0:00:08]} O-O {[%emt 0:00:02]} 7. Qe2 {[%emt 0:00:05]} c6 {[%emt 0:00:04]} 8. a4 {[%emt 0:00:05]} Qc7 {[%emt 0:00:09]} 9. Ba2 {[%emt 0:00:04]} b6 {[%emt 0:00:03]} 10. h3 {[%emt 0:00:16]} Bb7 {[%emt 0:00:01]} 11. Be3 {[%emt 0:00:03]} a6 {[%emt 0:00:05]} 12. dxe5 {[%emt 0:00:51]} dxe5 {[%emt 0:00:03]} 13. Nd2 {[%emt 0:00:13]} b5 {[%emt 0:00:12]} 14. Rfe1 {[%emt 0:00:18]} Nc5 {[%emt 0:00:07]} 15. axb5 {[%emt 0:00:27]} axb5 {[%emt 0:00:02]} 16. f3 {[%emt 0:00:01]} Nh5 {[%emt 0:00:15]} 17. Qf2 {[%emt 0:00:02]} Na4 {[%emt 0:00:23]} 18. Nxa4 {[%emt 0:00:04]} Rxa4 {[%emt 0:00:01]} 19. Bb3 {[%emt 0:00:02]} Raa8 {[%emt 0:00:11]} 20. Bc5 {[%emt 0:00:12]} Nf4 {[%emt 0:00:06]} 21. Nf1 {[%emt 0:00:07]} g6 {[%emt 0:00:25]} 22. Bxe7 {[%emt 0:00:03]} Qxe7 {[%emt 0:00:01]} 23. Ne3 {[%emt 0:00:01]} h5 {[%emt 0:00:10]} 24. Kh2 {[%emt 0:00:02]} h4 {[%emt 0:00:02]} 25. Ng4 {[%emt 0:00:04]} Kg7 {[%emt 0:00:02]} 26. Qd2 {[%emt 0:00:07]} Rxa1 {[%emt 0:00:05]} 27. Rxa1 {[%emt 0:00:00]} Bc8 {[%emt 0:00:01]} 28. Qc3 {[%emt 0:00:02]} Bxg4 {[%emt 0:00:03]} 29. hxg4 {[%emt 0:00:03]} Rd8 {[%emt 0:00:07]} 30. Qe3 {[%emt 0:00:12]} c5 {[%emt 0:00:07]} 31. c4 {[%emt 0:00:03]} Rd3 {[%emt 0:00:03]} 0-1

[Event "RUS-ch Men Blitz 2019"]
[Site "Sochi"]
[Date "2019.10.17"]
[Round "2.18"]
[White "Sakaev, Konstantin"]
[Black "Musalov, Ruslan"]
[Result "1-0"]
[ECO "D35"]
[WhiteElo "2595"]
[BlackElo "2348"]
[Annotator "RC"]
[PlyCount "109"]
[EventDate "2019.10.17"]
[EventType "swiss"]
[EventCountry "RUS"]
[SourceTitle "playchess.com"]
[Source "ChessBase"]
[SourceQuality "1"]
[TimeControl "180+2"]

1. d4 {[%emt 0:00:00]} d5 {[%emt 0:00:04]} 2. c4 {[%emt 0:00:00]} e6 {[%emt 0:00:02]} 3. Nc3 {[%emt 0:00:03]} Nf6 {[%emt 0:00:02]} 4. cxd5 {[%emt 0:00:01]} exd5 {[%emt 0:00:03]} 5. Bg5 {[%emt 0:00:01]} Be7 {[%emt 0:00:09]} 6. e3 {[%emt 0:00:01]} b6 {[%emt 0:00:16]} 7. Bd3 {[%emt 0:00:09]} Bb7 {[%emt 0:00:01]} 8. Nge2 {[%emt 0:00:24]} h6 {[%emt 0:00:27]} 9. Bh4 {[%emt 0:00:05]} a6 {[%emt 0:00:04]} 10. O-O {[%emt 0:00:17]} Nbd7 {[%emt 0:00:26]} 11. Rc1 {[%emt 0:00:10]} O-O {[%emt 0:00:04]} 12. a3 {[%emt 0:00:32]} Rc8 {[%emt 0:00:17]} 13. Bf5 {[%emt 0:00:13]} g6 {[%emt 0:00:32]} 14. Bb1 {[%emt 0:00:07]} Ne4 {[%emt 0:00:13]} 15. Bxe7 {[%emt 0:00:16]} Qxe7 {[%emt 0:00:05]} 16. b4 {[%emt 0:00:30]} Kg7 {[%emt 0:00:09]} 17. Nxe4 {[%emt 0:00:07]} dxe4 {[%emt 0:00:02]} 18. Qb3 {[%emt 0:00:03]} Nf6 {[%emt 0:00:13]} 19. Nc3 {[%emt 0:00:01]} Rfd8 {[%emt 0:00:05]} 20. h3 {[%emt 0:00:05]} c5 {[%emt 0:00:05]} 21. dxc5 {[%emt 0:00:05]} bxc5 {[%emt 0:00:01]} 22. bxc5 {[%emt 0:00:07]} Rxc5 {[%emt 0:00:05]} 23. Na4 {[%emt 0:00:04]} Rxc1 {[%emt 0:00:03]} 24. Rxc1 {[%emt 0:00:01]} Bd5 {[%emt 0:00:03]} 25. Qc3 {[%emt 0:00:01]} Kg8 {[%emt 0:00:03]} 26. Nb6 {[%emt 0:00:01]} Be6 {[%emt 0:00:01]} 27. a4 {[%emt 0:00:09]} Nd5 {[%emt 0:00:01]} 28. Nxd5 {[%emt 0:00:03]} Bxd5 {[%emt 0:00:01]} 29. a5 {[%emt 0:00:02]} Qe6 {[%emt 0:00:04]} 30. Qc7 {[%emt 0:00:04]} Rd7 {[%emt 0:00:02]} 31. Qc8+ {[%emt 0:00:01]} Kg7 {[%emt 0:00:01]} 32. Qb8 {[%emt 0:00:07]} Qd6 {[%emt 0:00:03]} 33. Qb2+ {[%emt 0:00:02]} Qf6 {[%emt 0:00:01]} 34. Qb4 {[%emt 0:00:05]} Qd6 {[%emt 0:00:05]} 35. Qxd6 {[%emt 0:00:04]} Rxd6 {[%emt 0:00:01]} 36. Rd1 {[%emt 0:00:01]} Rd7 {[%emt 0:00:11]} 37. Bxe4 {[%emt 0:00:01]} Be6 {[%emt 0:00:01]} 38. Rxd7 {[%emt 0:00:05]} Bxd7 {[%emt 0:00:01]} 39. f4 {[%emt 0:00:01]} Kf6 {[%emt 0:00:02]} 40. Kf2 {[%emt 0:00:01]} Ke6 {[%emt 0:00:02]} 41. Bd3 {[%emt 0:00:02]} Bc8 {[%emt 0:00:01]} 42. Bc4+ {[%emt 0:00:00]} Ke7 {[%emt 0:00:01]} 43. e4 {[%emt 0:00:01]} f6 {[%emt 0:00:01]} 44. Ke3 {[%emt 0:00:01]} Kd6 {[%emt 0:00:01]} 45. Kd4 {[%emt 0:00:00]} Bb7 {[%emt 0:00:01]} 46. e5+ {[%emt 0:00:01]} Ke7 {[%emt 0:00:03]} 47. g3 {[%emt 0:00:01]} g5 {[%emt 0:00:02]} 48. h4 {[%emt 0:00:02]} Bc8 {[%emt 0:00:04]} 49. Kc5 {[%emt 0:00:01]} gxf4 {[%emt 0:00:03]} 50. gxf4 {[%emt 0:00:00]} fxe5 {[%emt 0:00:02]} 51. fxe5 {[%emt 0:00:01]} Bb7 {[%emt 0:00:06]} 52. Kb6 Be4 53. Kxa6 {[%emt 0:00:03]} Kd7 {[%emt 0:00:03]} 54. Kb6 {[%emt 0:00:01]} Kc8 {[%emt 0:00:01]} 55. a6 {[%emt 0:00:02]} 1-0

[Event "RUS-ch Men Blitz 2019"]
[Site "Sochi"]
[Date "2019.10.20"]
[Round "2.18"]
[White "Jary, Sergey"]
[Black "Zakhartsov, Vladimir"]
[Result "0-1"]
[ECO "A48"]
[WhiteElo "2275"]
[BlackElo "2514"]
[Annotator "ChessBase"]
[PlyCount "74"]
[EventDate "2019.10.17"]
[EventType "swiss"]
[EventCountry "RUS"]
[SourceTitle "playchess.com"]
[Source "ChessBase"]
[SourceQuality "1"]
[TimeControl "180+2"]

1. d4 {[%emt 0:00:00]} Nf6 {[%emt 0:00:00]} 2. Nf3 {[%emt 0:00:00]} g6 {[%emt 0:00:00]} 3. Bf4 {[%emt 0:00:00]} Bg7 {[%emt 0:00:00]} 4. e3 {[%emt 0:00:01]} O-O {[%emt 0:00:02]} 5. h3 {[%emt 0:00:00]} d6 {[%emt 0:00:01]} 6. Nbd2 {[%emt 0:00:01]} Nbd7 {[%emt 0:00:01]} 7. Be2 {[%emt 0:00:02]} Qe8 {[%emt 0:00:05]} 8. O-O {[%emt 0:00:03]} e5 {[%emt 0:00:01]} 9. Bh2 {[%emt 0:00:01]} Qe7 {[%emt 0:00:02]} 10. Re1 {[%emt 0:00:03]} e4 {[%emt 0:00:06]} 11. Nh4 {[%emt 0:00:01]} Nb6 {[%emt 0:00:22]} 12. Bg4 {[%emt 0:00:11]} Nxg4 {[%emt 0:00:03]} 13. hxg4 {[%emt 0:00:00]} Qxh4 {[%emt 0:00:01]} 14. Nxe4 {[%emt 0:00:04]} Qxg4 {[%emt 0:00:02]} 15. Qxg4 {[%emt 0:00:03]} Bxg4 {[%emt 0:00:02]} 16. Rac1 {[%emt 0:00:03]} Rfe8 {[%emt 0:00:06]} 17. Nd2 {[%emt 0:00:01]} Rad8 {[%emt 0:00:06]} 18. c4 {[%emt 0:00:01]} c5 {[%emt 0:00:02]} 19. f3 {[%emt 0:00:09]} Bc8 {[%emt 0:00:10]} 20. d5 {[%emt 0:00:05]} Bxb2 21. Rc2 Be5 {[%emt 0:00:14]} 22. f4 {[%emt 0:00:03]} Bd4 {[%emt 0:00:06]} 23. Kf2 {[%emt 0:00:04]} Bf5 {[%emt 0:00:05]} 24. Rcc1 {[%emt 0:00:04]} Bb2 {[%emt 0:00:03]} 25. Kf3 {[%emt 0:00:08]} Bxc1 {[%emt 0:00:08]} 26. Rxc1 {[%emt 0:00:01]} h5 {[%emt 0:00:09]} 27. e4 {[%emt 0:00:01]} Bg4+ {[%emt 0:00:03]} 28. Kf2 {[%emt 0:00:01]} Nd7 {[%emt 0:00:04]} 29. Rb1 {[%emt 0:00:03]} b6 {[%emt 0:00:07]} 30. Rb3 {[%emt 0:00:01]} Re7 {[%emt 0:00:05]} 31. Re3 {[%emt 0:00:03]} Rde8 {[%emt 0:00:02]} 32. Bg3 {[%emt 0:00:04]} Bf5 {[%emt 0:00:09]} 33. Bh4 {[%emt 0:00:08]} Rxe4 {[%emt 0:00:04]} 34. Nxe4 {[%emt 0:00:14]} Rxe4 {[%emt 0:00:02]} 35. Rxe4 {[%emt 0:00:03]} Bxe4 {[%emt 0:00:01]} 36. Ke3 {[%emt 0:00:01]} Bb1 {[%emt 0:00:08]} 37. a3 {[%emt 0:00:02]} f6 {[%emt 0:00:05] Kd4} 0-1